fUST/lending_fUST_20260210
["ID","MTS","AMOUNT","RATE_DAILY","PERIOD"]
[404895371,1770660549538,-500.0,0.00025654,2]
[404895372,1770660549559,-500.0,0.00025654,2]
[404895373,1770660549579,-296.85579403,0.00025654,2]
[404895374,1770660549600,-500.0,0.00025654,2]
[404895375,1770660549620,-500.0,0.00025654,2]
[404895376,1770660549640,-500.0,0.00025654,2]
[404895377,1770660549660,-500.0,0.00025654,2]
[404895378,1770660549682,-500.0,0.00025654,2]
[404895379,1770660549702,-500.0,0.00025654,2]
[404895380,1770660549721,-500.0,0.00025654,2]
[404895381,1770660549742,-500.0,0.00025654,2]
[404895382,1770660549765,-500.0,0.00025654,2]
[404895383,1770660549784,-500.0,0.00025654,2]
[404895384,1770660549806,-500.0,0.00025654,2]
[404895385,1770660549827,-500.0,0.00025654,2]
[404895386,1770660549847,-500.0,0.00025654,2]
[404895387,1770660549867,-500.0,0.00025654,2]
[404895388,1770660549886,-500.0,0.00025654,2]
[404895389,1770660549906,-500.0,0.00025654,2]
[404895390,1770660549930,-500.0,0.00025654,2]
[404895391,1770660549950,-500.0,0.00025654,2]
[404895392,1770660549970,-500.0,0.00025654,2]
[404895393,1770660549989,-500.0,0.00025654,2]
[404895394,1770660550010,-500.0,0.00025654,2]
[404895395,1770660550030,-500.0,0.00025654,2]
[404895396,1770660550052,-500.0,0.00025654,2]
[404895397,1770660550072,-500.0,0.00025654,2]
[404895398,1770660550092,-500.0,0.00025654,2]
[404895399,1770660550119,-500.0,0.00025654,2]
[404895400,1770660550139,-456.86617545,0.00025654,2]
[404895401,1770660550159,-616.10293096,0.00025654,2]
[404895402,1770660550180,-500.0,0.00025654,2]
[404895403,1770660550200,-500.0,0.00025654,2]
[404895404,1770660550221,-500.0,0.00025654,2]
[404895405,1770660550241,-500.0,0.00025654,2]
[404895406,1770660550261,-500.0,0.00025654,2]
[404895407,1770660550281,-300.0,0.00025654,2]
[404895408,1770660550303,-500.0,0.00025654,2]
[404895409,1770660550323,-500.0,0.00025654,2]
[404895410,1770660550342,-50000.0,0.00025655,2]
[404895411,1770660550362,-420.0,0.00025897,2]
[404895412,1770660550382,-4409.38510711,0.00025908,2]
[404895413,1770660550402,-328.28451054,0.00026007,2]
[404895414,1770660550427,-204.0,0.00027599,2]
[404895415,1770660550447,-587.0,0.00028088,2]
[404895416,1770660550467,-1348.9985023,0.00028124,2]
[404895417,1770660550486,-469.16,0.00029143,3]
[404895418,1770660550506,-234.58,0.00029143,3]
[404895419,1770660550526,-938.32,0.00029153,3]
[404895420,1770660550547,-847.09,0.00029163,2]
[404895421,1770660550567,-231.0,0.00029599,2]
[404895422,1770660550589,-938.32,0.00030513,3]
[404895423,1770660550609,-469.16,0.00030513,3]
[404895424,1770660550629,-1876.64,0.00030523,3]
[404895425,1770660550650,-258.0,0.00031599,2]
[404895426,1770660550669,-703.74,0.00032262,3]
[404895427,1770660550688,-500.0,0.00032272,2]
[404895428,1770660550707,-210.43385801,0.00032272,10]
[404895429,1770660550728,-500.0,0.00032272,2]
[404895430,1770660550747,-500.0,0.00032272,2]
[404895431,1770660550770,-500.0,0.00032272,2]
[404895432,1770660550790,-6373.62046382,0.00032273,7]
[404895433,1770660550812,-350.07,0.000332,10]
[404895434,1770660550834,-285.0,0.00033599,120]
[404895435,1770660550855,-500.0,0.00033887,120]
[404895436,1770660550875,-235.16047247,0.00034213,2]
[404895437,1770660550896,-312.0,0.00035599,120]
[404895438,1770660550998,-399.08,0.000358,120]
[404895439,1770660551018,-200.0,0.00037336,2]
[404895440,1770660551039,-234.0,0.00037599,120]
[404895441,1770660551061,-1449.2648,0.000385,120]
[404895442,1770660551080,-401.0,0.00039044,11]
[404895443,1770660551102,-1469.5394289,0.00039511,2]
[404895444,1770660551123,-1922.9333484,0.00039513,2]
[404895445,1770660551144,-500.0,0.00039588,2]
[404895447,1770660551165,-2000.0,0.00039589,3]
[404895448,1770660551185,-151.0,0.00039589,3]
[404895449,1770660551204,-151.0,0.00039589,3]
[404895450,1770660551224,-151.0,0.00039589,3]
[404895451,1770660551244,-151.0,0.00039589,3]
[404895452,1770660551264,-250.0,0.00039589,3]
[404895453,1770660551283,-151.0,0.00039589,3]
[404895454,1770660551305,-250.0,0.00039589,3]
[404895455,1770660551325,-151.0,0.00039589,3]
[404895456,1770660551345,-250.0,0.00039589,3]
[404895457,1770660551364,-151.0,0.00039589,3]
[404895458,1770660551383,-151.0,0.00039589,3]
[404895459,1770660551403,-151.0,0.00039589,3]
[404895460,1770660551422,-151.0,0.00039589,3]
[404895461,1770660551442,-151.0,0.00039589,3]
[404895462,1770660551468,-151.0,0.00039589,3]
[404895463,1770660551489,-180.54959051,0.00039589,3]
[404895464,1770660551510,-301.7,0.0003959,10]
[404895465,1770660551528,-500.0,0.00039599,2]
[404895466,1770660551550,-500.0,0.00039599,120]
[404895467,1770660551571,-13387.51849354,0.000396,2]
[404895468,1770660551591,-998.61,0.000396,14]
[404895469,1770660551610,-2004.45,0.000396,14]
[404895470,1770660551630,-319.0,0.00039655,2]
[404895471,1770660551652,-314.0,0.00039655,2]
[404895472,1770660551673,-1000.0,0.000397,15]
[404895473,1770660551692,-161.0,0.000397,11]
[404895474,1770660551712,-191.0,0.00039737,2]
[404895475,1770660551737,-188.0,0.00039737,2]
[404895476,1770660551759,-500.0,0.00039899,120]
[404895477,1770660551780,-6154.51259187,0.000399,2]
[404895478,1770660551803,-500.0,0.0003998,2]
[404895479,1770660551823,-500.0,0.00039989,2]
[404895480,1770660551844,-500.0,0.00039989,2]
[404895481,1770660551863,-500.0,0.00039989,2]
[404895482,1770660551884,-300.0,0.00039989,120]
[404895483,1770660551902,-19041.11666103,0.0003999,2]
[404895484,1770660551988,-36249.57138068,0.0003999,2]
[404895485,1770660552008,-500.0,0.00039999,30]
[404895486,1770660552026,-500.0,0.00039999,30]
[404895487,1770660552046,-500.0,0.00039999,30]
[404895488,1770660552064,-500.0,0.00039999,30]
[404895489,1770660552084,-500.0,0.00039999,30]
[404895490,1770660552103,-516.16,0.00039999,30]
[404895491,1770660552123,-503.57547916,0.00039999,120]
[404895492,1770660552148,-500.0,0.00039999,120]
[404895493,1770660552168,-45268.33298399,0.0004,120]
[404895500,1770660573217,-230.511112,0.00036143,2]
[404895501,1770660573236,-17569.3211256,0.0004,120]
[404895504,1770660604238,552.25,0.000195,2]
[404895505,1770660604873,552.25,0.000196,2]
[404895506,1770660605426,552.25,0.000196,2]
[404895507,1770660606091,552.25,0.000197,2]
[404895508,1770660606651,552.25,0.000198,2]
[404895509,1770660607235,552.25,0.000199,2]
[404895510,1770660607944,552.25,0.000199,2]
[404895511,1770660608143,502.60904771,0.00013699,2]
[404895512,1770660608502,552.25,0.0002,2]
[404895513,1770660609048,552.25,0.000201,2]
[404895514,1770660609537,552.25,0.000201,2]
[404895515,1770660610271,552.25,0.000202,2]
[404895516,1770660610845,552.25,0.000203,2]
[404895518,1770660613837,552.25,0.000204,2]
[404895519,1770660614444,552.25,0.000204,2]
[404895521,1770660615021,552.25,0.000205,2]
[404895522,1770660615380,552.25,0.000206,2]
[404895523,1770660616018,552.25,0.000206,2]
[404895525,1770660616534,552.25,0.000207,2]
[404895526,1770660617142,552.25,0.000208,2]
[404895527,1770660617927,552.25,0.000209,2]
[404895528,1770660618574,552.25,0.000209,2]
[404895529,1770660619184,552.25,0.00021,2]
[404895530,1770660620005,552.25,0.000211,2]
[404895531,1770660620677,552.25,0.000211,2]
[404895532,1770660621143,552.25,0.000212,2]
[404895533,1770660621600,552.25,0.000213,2]
[404895534,1770660622061,552.25,0.000214,2]
[404895535,1770660622546,552.25,0.000214,2]
[404895536,1770660623193,552.25,0.000215,2]
[404895537,1770660623804,552.25,0.000216,2]
[404895538,1770660624267,552.25,0.000216,2]
[404895540,1770660624857,552.25,0.000217,2]
[404895541,1770660625427,552.25,0.000218,2]
[404895542,1770660626022,552.25,0.000219,2]
[404895543,1770660626508,552.25,0.000219,2]
[404895544,1770660627215,552.25,0.00022,2]
[404895545,1770660627851,552.25,0.000221,2]
[404895546,1770660628573,552.25,0.000221,2]
[404895547,1770660629136,552.25,0.000222,2]
[404895548,1770660629717,552.25,0.000223,2]
[404895549,1770660630344,552.25,0.000224,2]
[404895550,1770660631054,552.25,0.000224,2]
[404895551,1770660631709,552.25,0.000225,2]
[404895559,1770660632242,552.25,0.000226,2]
[404895587,1770660632549,-332.93679327,0.00037442,2]
[404895610,1770660632753,552.25,0.000226,2]
[404895678,1770660633406,552.25,0.000227,2]
[404895749,1770660634076,552.25,0.000228,2]
[404895789,1770660634586,552.25,0.000229,2]
[404895830,1770660635107,552.25,0.000229,2]
[404895837,1770660635674,552.25,0.00023,2]
[404895860,1770660638515,-2895.67377803,0.00037442,2]
[404895863,1770660638529,-2200.0,0.000396,2]
[404895865,1770660638542,-500.0,0.00039998,30]
[404895867,1770660638556,-500.0,0.00039998,30]
[404895869,1770660638566,-500.0,0.00039998,30]
[404895871,1770660638576,-250.0,0.00039998,30]
[404895873,1770660638587,-250.0,0.00039998,30]
[404895876,1770660638598,-250.0,0.00039998,30]
[404895878,1770660638611,-500.0,0.00039998,30]
[404895880,1770660638622,-500.0,0.00039998,30]
[404895897,1770660638782,-250.0,0.00039998,30]
[404895899,1770660638796,-500.0,0.00039998,30]
[404895901,1770660638806,-250.0,0.00039998,30]
[404895903,1770660638816,-500.0,0.00039998,30]
[404895905,1770660638825,-250.0,0.00039998,30]
[404895907,1770660638834,-500.0,0.00039998,30]
[404895909,1770660638844,-250.0,0.00039998,30]
[404895911,1770660638856,-250.0,0.00039998,30]
[404895913,1770660638866,-250.0,0.00039998,30]
[404895915,1770660638875,-20428.47328913,0.0004,120]
[404896656,1770660646124,-11651.77407635,0.0004,120]
[404896714,1770660646709,-32145.90867926,0.0004,120]
[404896716,1770660646720,-693.24790793,0.0004,120]
[404896719,1770660646744,-12087.40535554,0.0004,120]
[404897509,1770660667132,500.0,0.00013273,2]
[404897511,1770660668565,501.06734588,0.00013699,2]
[404897518,1770660671206,393.03279052,0.00013273,2]
[404897525,1770660727557,500.68611016,0.00013699,2]
[404897526,1770660729683,500.0,0.00013273,2]
[404897527,1770660734744,500.0,0.00013699,2]
[404897528,1770660734800,467.06980763,0.00014247,2]
[404897535,1770660903662,190.76989047,0.00013273,2]
[404897549,1770660964883,161.2429204,0.00013699,2]
[404897583,1770661023337,500.0,0.00013273,2]
[404897584,1770661023365,574.58809786,0.00013821,2]
[404897585,1770661024508,500.0,0.00013699,2]
[404897586,1770661024562,441.20250112,0.00014247,2]
[404897644,1770661204292,152.9,0.000195,2]
[404897646,1770661204862,152.9,0.000196,2]
[404897650,1770661205429,152.9,0.000197,2]
[404897652,1770661206028,152.9,0.000199,2]
[404897653,1770661206636,152.9,0.0002,2]
[404897660,1770661207460,152.9,0.000201,2]
[404897661,1770661208106,152.9,0.000202,2]
[404897662,1770661208659,152.9,0.000203,2]
[404897663,1770661209368,152.9,0.000204,2]
[404897664,1770661210011,152.9,0.000206,2]
[404897665,1770661210641,152.9,0.000207,2]
[404897666,1770661211286,152.9,0.000208,2]
[404897667,1770661211910,152.9,0.000209,2]
[404897668,1770661212511,152.9,0.00021,2]
[404897669,1770661213292,152.9,0.000211,2]
[404897670,1770661213903,152.9,0.000213,2]
[404897671,1770661214512,152.9,0.000214,2]
[404897672,1770661215169,152.9,0.000215,2]
[404897673,1770661215784,152.9,0.000216,2]
[404897674,1770661216352,152.9,0.000217,2]
[404897675,1770661217012,152.9,0.000218,2]
[404897677,1770661217585,152.9,0.00022,2]
[404897678,1770661218236,152.9,0.000221,2]
[404897679,1770661218677,152.9,0.000222,2]
[404897680,1770661219189,152.9,0.000223,2]
[404897681,1770661219726,152.9,0.000224,2]
[404897682,1770661220223,152.9,0.000225,2]
[404897683,1770661220979,152.9,0.000227,2]
[404897684,1770661221687,152.9,0.000228,2]
[404897685,1770661222634,152.9,0.000229,2]
[404897686,1770661223258,152.9,0.00023,2]
[404897694,1770661266683,500.0,0.00021918,2]
[404897715,1770661307833,5000.0,0.000231,2]
[404897718,1770661315715,5000.0,0.000231,2]
[404897721,1770661324042,5000.0,0.000231,2]
[404897722,1770661346471,524.23797179,0.000231,2]
[404897763,1770661504395,500.0,0.00021918,2]
[404897765,1770661517826,300.0,0.00013673,2]
[404897766,1770661518390,500.0,0.00013273,2]
[404897767,1770661524553,500.0,0.00013273,2]
[404897768,1770661528424,500.0,0.00013273,2]
[404897769,1770661528596,500.0,0.00013699,2]
[404897772,1770661529977,500.0,0.00013699,2]
[404897773,1770661530465,500.0,0.00013273,2]
[404897774,1770661532896,500.0,0.00013273,2]
[404897777,1770661538762,500.0,0.00013699,2]
[404897778,1770661546479,500.0,0.00013699,2]
[404897787,1770661611139,-150.0,0.00023895,2]
[404897788,1770661611162,-176.93569416,0.00024503,2]
[404897791,1770661627416,500.0,0.00013699,2]
[404897792,1770661630446,500.0,0.00013699,2]
[404897793,1770661630473,300.0,0.00013673,2]
[404897794,1770661630518,500.0,0.00013273,2]
[404897795,1770661630571,500.0,0.00013821,2]
[404897796,1770661631744,500.0,0.00013821,2]
[404897797,1770661631791,500.0,0.00013273,2]
[404897798,1770661631944,500.0,0.00013699,2]
[404897799,1770661632003,425.39496538,0.00014247,2]
[404897800,1770661632154,500.0,0.00013699,2]
[404897802,1770661633711,500.0,0.00013273,2]
[404897803,1770661633739,452.20051875,0.00013699,2]
[404897804,1770661633764,500.0,0.00013821,2]
[404897805,1770661634360,500.0,0.00013273,2]
[404897806,1770661634409,500.0,0.00013821,2]
[404897807,1770661650084,-632.06430584,0.00024503,2]
[404897808,1770661650103,-167.24366161,0.00025,2]
[404897809,1770661650128,-177.0,0.00025895,2]
[404897810,1770661650150,-204.0,0.00027895,2]
[404897811,1770661650171,-390.79153988,0.00029353,30]
[404897816,1770661707438,14164.39767715,0.0002,2]
[404897833,1770661717528,21011.24123246,0.0003,120]
[404897850,1770661807076,170.34584268,0.00013699,2]
[404897851,1770661810056,500.0,0.00013699,2]
[404897852,1770661811584,500.0,0.00013699,2]
[404897853,1770661814497,568.35498859,0.00013699,2]
[404897854,1770661815003,936.66421864,0.00014247,2]
[404897855,1770661815675,500.0,0.00013699,2]
[404897856,1770661815733,500.0,0.00014247,2]
[404897858,1770661816976,500.0,0.00013821,2]
[404897859,1770661817070,500.0,0.00013273,2]
[404897862,1770661819053,500.0,0.00013699,2]
[404897863,1770661819412,500.0,0.00013699,2]
[404897865,1770661821487,300.0,0.00013673,2]
[404897866,1770661822340,506.90544277,0.00013699,2]
[404897867,1770661822630,500.0,0.00013273,2]
[404897922,1770661831570,-1200.0,0.00024549,2]
[404897924,1770661831579,-3255.61298915,0.0002455,2]
[404897929,1770661831621,-1288.26502213,0.0002455,2]
[404897931,1770661831631,-810.0,0.0002455,2]
[404897933,1770661831642,-5499.09204552,0.0002465,2]
[404897963,1770661837595,-491.1711372,0.0002465,2]
[404898174,1770661844877,-36.32618824,0.0002465,2]
[404898184,1770661845929,-174.56661193,0.0002465,2]
[404898185,1770661845940,-6065.56914904,0.0002465,2]
[404898187,1770661867431,500.0,0.00013273,2]
[404898188,1770661868612,188.00834446,0.00013273,2]
[404898189,1770661869397,160.53889185,0.00013273,2]
[404898194,1770661931708,500.0,0.00013699,2]
[404898195,1770661932637,500.0,0.00013699,2]
[404898196,1770661933098,342.28780942,0.00013699,2]
[404898198,1770661935908,500.0,0.00013699,2]
[404898199,1770661936104,500.0,0.00013699,2]
[404898200,1770661936168,500.0,0.00014247,2]
[404898201,1770661939725,-5000.0,0.00023917,2]
[404898202,1770661939758,-2087.40535554,0.00024159,2]
[404898206,1770661969349,-2120.41670553,0.00024159,2]
[404898207,1770661969378,-759.16658894,0.00024159,2]
[404898208,1770661985064,500.0,0.00013699,2]
[404898209,1770661985122,1000.0,0.00014247,2]
[404898210,1770661998713,-2120.41670553,0.00024403,2]
[404898213,1770662111829,1000.0,0.00013821,2]
[404898214,1770662111873,500.0,0.00013273,2]
[404898215,1770662111930,560.22130704,0.00014368,2]
[404898216,1770662113921,500.0,0.00013273,2]
[404898217,1770662115422,500.0,0.00013273,2]
[404898218,1770662117506,500.0,0.00013273,2]
[404898219,1770662117567,1000.0,0.00013821,2]
[404898220,1770662124570,500.0,0.00013699,2]
[404898221,1770662127062,265.22746757,0.00013699,2]
[404898222,1770662134734,300.0,0.00013673,2]
[404898228,1770662172568,500.0,0.00013273,2]
[404898231,1770662183049,500.0,0.00013699,2]
[404898232,1770662184027,500.0,0.00013699,2]
[404898233,1770662184181,500.0,0.00014247,2]
[404898238,1770662188708,500.2543677,0.00013699,2]
[404898239,1770662188934,500.0,0.00013699,2]
[404898242,1770662189275,500.0,0.00013273,2]
[404898281,1770662224011,212.28615271,0.00013699,2]
[404898282,1770662226452,500.0,0.00013273,2]
[404898292,1770662229214,500.0,0.00013273,2]
[404898294,1770662231679,154.67007198,0.00013699,2]
[404898323,1770662346917,500.0,0.00013273,2]
[404898347,1770662406926,500.0,0.00013699,2]
[404898348,1770662406969,1000.0,0.00014247,2]
[404898349,1770662407017,1500.0,0.00014795,2]
[404898350,1770662407083,321.68310957,0.00015342,2]
[404898351,1770662407505,500.0,0.00013273,2]
[404898352,1770662407551,1000.0,0.00013821,2]
[404898353,1770662407607,1500.0,0.00014368,2]
[404898357,1770662410956,500.0,0.00013273,2]
[404898358,1770662411004,500.0,0.00013821,2]
[404898359,1770662411603,269.77489047,0.00013273,2]
[404898360,1770662413781,500.0,0.00013699,2]
[404898361,1770662413837,307.55128783,0.00014247,2]
[404898362,1770662414072,500.0,0.00013273,2]
[404898363,1770662414129,890.23848573,0.00013821,2]
[404898365,1770662418668,300.0,0.00013673,2]
[404898366,1770662418724,300.0,0.00014221,2]
[404898371,1770662422364,500.0,0.00013273,2]
[404898372,1770662422421,1000.0,0.00013821,2]
[404898373,1770662422468,1500.0,0.00014368,2]
[404898374,1770662422527,500.0,0.00014916,2]
[404898375,1770662423187,500.0,0.00013273,2]
[404898376,1770662423255,500.0,0.00013821,2]
[404898377,1770662424070,2879.58329447,0.000231,2]
[404898378,1770662425590,503.24880264,0.00013699,2]
[404898399,1770662464852,500.0,0.00013699,2]
[404898400,1770662464908,616.61497936,0.00014247,2]
[404898401,1770662465586,1000.0,0.00013821,2]
[404898402,1770662465653,500.0,0.00013273,2]
[404898403,1770662465691,1500.0,0.00014368,2]
[404898404,1770662465893,505.25275245,0.00013699,2]
[404898405,1770662466631,273.6912201,0.00013699,2]
[404898406,1770662466658,500.0,0.00013273,2]
[404898407,1770662466685,210.22335641,0.00013821,2]
[404898409,1770662467654,1000.0,0.00013821,2]
[404898411,1770662467707,500.0,0.00013273,2]
[404898412,1770662467766,1500.0,0.00014368,2]
[404898414,1770662467810,2118.98403551,0.00014916,2]
[404898421,1770662468659,1000.0,0.00013821,2]
[404898422,1770662469072,500.0,0.00013273,2]
[404898431,1770662479246,500.0,0.00013273,2]
[404898432,1770662479291,1000.0,0.00013821,2]
[404898433,1770662484170,500.0,0.00013699,2]
[404898435,1770662524443,354.01889602,0.00013699,2]
[404898436,1770662529613,560.73111469,0.00013273,2]
[404898437,1770662538653,172.28042267,0.00013273,2]
[404898438,1770662583879,438.73947854,0.00013699,2]
[404898439,1770662584033,500.74038109,0.00014247,2]
[404898440,1770662584068,500.0,0.00013699,2]
[404898441,1770662586521,233.34446363,0.00013273,2]
[404898449,1770662703128,4476.01417263,0.00027397,120]
[404898450,1770662704780,503.87593162,0.00013273,2]
[404898452,1770662707240,500.0,0.00013273,2]
[404898453,1770662707290,1000.0,0.00013821,2]
[404898454,1770662711475,500.0,0.00013273,2]
[404898455,1770662711528,1000.0,0.00013821,2]
[404898456,1770662711582,500.0,0.00014368,2]
[404898457,1770662713499,500.0,0.00013273,2]
[404898458,1770662713531,500.0,0.00013273,2]
[404898459,1770662713558,1000.0,0.00013821,2]
[404898460,1770662713585,949.78290204,0.00013821,2]
[404898461,1770662716634,500.0,0.00013273,2]
[404898462,1770662718447,500.0,0.00013273,2]
[404898463,1770662718499,345.20676096,0.00013821,2]
[404898465,1770662724988,500.0,0.00013273,2]
[404898466,1770662725048,1000.0,0.00013821,2]
[404898467,1770662725096,500.0,0.00014368,2]
[404898470,1770662778108,504.04510864,0.00013273,2]
[404898471,1770662783844,500.80139127,0.00013273,2]
[404898472,1770662790809,500.0,0.00013273,2]
[404898473,1770662790838,1000.0,0.00013821,2]
[404898474,1770662790885,1500.0,0.00014368,2]
[404898475,1770662790939,669.24202811,0.00014916,2]
[404898476,1770662793010,500.0,0.00013273,2]
[404898477,1770662793280,500.0,0.00013699,2]
[404898478,1770662793344,1000.0,0.00014247,2]
[404898479,1770662796513,500.0,0.00013699,2]
[404898480,1770662824027,504.09505111,0.00013273,2]
[404898481,1770662827276,500.0,0.00013273,2]
[404898482,1770662827310,569.85458534,0.00013273,2]
[404898483,1770662914585,310.18224092,0.0002309,2]
[404898485,1770662943482,500.0,0.00013699,2]
[404898486,1770662943514,260.05017888,0.00014247,2]
[404898487,1770662956740,161.0,8.3e-07,2]
[404898488,1770662957780,161.0,8.3e-07,2]
[404898489,1770662959399,161.0,8.3e-07,2]
[404898490,1770662959636,394.0,0.00030136,120]
[404898491,1770662960562,161.0,8.3e-07,2]
[404898492,1770662961598,161.0,8.3e-07,2]
[404898493,1770662962626,161.0,8.3e-07,2]
[404898494,1770662963797,161.0,8.3e-07,2]
[404898495,1770662964848,161.0,8.3e-07,2]
[404898496,1770662965859,161.0,8.3e-07,2]
[404898497,1770662966931,161.0,8.3e-07,2]
[404898498,1770662970182,-150.0,0.00024472,2]
[404898499,1770662970202,-300.0,0.00024647,2]
[404898500,1770662970221,-18519.02951919,0.00024648,2]
[404898501,1770662970241,-676.0,0.00024648,2]
[404898502,1770662970262,-500.0,0.00024648,2]
[404898503,1770662970284,-500.0,0.00024648,2]
[404898504,1770662970304,-569.07423404,0.00024648,2]
[404898505,1770662970325,-500.0,0.00024648,2]
[404898506,1770662970346,-500.0,0.00024648,2]
[404898507,1770662970368,-456.18722988,0.00024648,2]
[404898508,1770662970389,-500.0,0.00024648,2]
[404898509,1770662970409,-500.0,0.00024648,2]
[404898510,1770662970428,-500.0,0.00024648,2]
[404898511,1770662970450,-500.0,0.00024649,2]
[404898512,1770662970470,-500.0,0.00024649,2]
[404898513,1770662970493,-500.0,0.00024649,2]
[404898514,1770662970513,-290.14211027,0.00024649,2]
[404898515,1770662970534,-32686.74145039,0.0002465,2]
[404898516,1770663007537,500.0,0.00013699,2]
[404898517,1770663020647,546.58941443,0.00013273,2]
[404898553,1770663031767,-200.06487246,0.0002455,2]
[404898555,1770663031777,-300.0,0.00024649,2]
[404898557,1770663031787,-6886.72732144,0.0002465,2]
[404898594,1770663037966,-7443.4663323,0.0002465,2]
[404898596,1770663037976,-515.80238779,0.0002465,2]
[404898598,1770663037986,-2326.80040974,0.00024774,2]
[404898600,1770663037995,-11288.73505786,0.00025,2]
[404898602,1770663038004,-1000.0,0.000255,2]
[404898604,1770663038013,-13527.24977725,0.00026092,2]
[404898957,1770663044014,-186.08033585,0.00026092,2]
[404898958,1770663044024,-4110.85550393,0.00026372,2]
[404898959,1770663044035,-177.0,0.00026472,2]
[404898960,1770663044044,-360.0,0.00026713,2]
[404898961,1770663044053,-200.0,0.00027397,2]
[404898962,1770663044063,-204.0,0.00028472,2]
[404898963,1770663044073,-200.06487246,0.000289,2]
[404898964,1770663044082,-675.74,0.0002899,3]
[404898965,1770663044092,-5538.03336411,0.0002899,2]
[404898981,1770663064239,496.02360558,0.00013699,2]
[404898982,1770663064542,500.0,0.00013699,2]
[404898983,1770663065458,500.0,0.00013699,2]
[404898984,1770663065493,500.0,0.00013699,2]
[404898985,1770663065526,375.31483149,0.00014247,2]
[404898986,1770663065558,500.0,0.00013699,2]
[404898988,1770663066360,501.66963784,0.00013699,2]
[404898989,1770663066388,500.0,0.00013273,2]
[404898990,1770663066421,353.66994885,0.00013821,2]
[404898991,1770663067326,500.0,0.00013699,2]
[404898992,1770663069657,499.91231904,0.00013699,2]
[404898993,1770663070679,500.0,0.00013699,2]
[404898994,1770663076559,500.0,0.00013273,2]
[404899011,1770663084483,500.0,0.00013273,2]
[404899012,1770663084532,500.0,0.00013821,2]
[404899019,1770663112614,501.17071967,0.00013699,2]
[404899023,1770663130579,500.71639393,0.00013699,2]
[404899024,1770663132204,425.51271515,0.00013699,2]
[404899025,1770663133320,500.0,0.00013699,2]
[404899077,1770663183218,500.0,0.00013273,2]
[404899078,1770663183278,543.57219283,0.00013821,2]
[404899097,1770663271981,-5000.0,0.00023441,2]
[404899098,1770663272012,-150.0,0.0002356,2]
[404899099,1770663272035,-5000.0,0.00023678,2]